lending/lending_fUSD_20250516
["ID","MTS","AMOUNT","RATE_DAILY","PERIOD"]
[361296529,1747431037990,-400.0,0.00016438,2]
[361296530,1747431038000,-400.0,0.00016438,2]
[361296531,1747431038009,-504.94,0.00016438,2]
[361296532,1747431038018,-400.0,0.00016438,2]
[361296534,1747431038028,-239.6055187,0.00016438,2]
[361296535,1747431038037,-151.0,0.00016438,2]
[361296536,1747431038047,-1615.4,0.00016438,2]
[361296537,1747431038056,-400.0,0.00016438,2]
[361296538,1747431038066,-400.0,0.00016438,2]
[361296539,1747431038075,-400.0,0.00016438,2]
[361296540,1747431038084,-1506.47,0.00016438,2]
[361296541,1747431038094,-402.8467249,0.00016438,2]
[361296542,1747431038103,-400.0,0.00016438,2]
[361296543,1747431038112,-400.0,0.00016438,2]
[361296545,1747431038122,-400.0,0.00016438,2]
[361296546,1747431038131,-400.0,0.00016438,2]
[361296547,1747431038140,-500.0,0.00016438,2]
[361296548,1747431038149,-764.61,0.00016438,2]
[361296549,1747431038158,-400.0,0.00016438,2]
[361296550,1747431038168,-441.1218144,0.00016438,2]
[361296551,1747431038177,-554.98,0.00016438,2]
[361296552,1747431038187,-400.0,0.00016438,2]
[361296553,1747431038196,-1142.0,0.00016438,2]
[361296554,1747431038205,-400.0,0.00016438,2]
[361296555,1747431038215,-450.0,0.00016438,2]
[361296556,1747431038224,-986.88,0.00016438,2]
[361296557,1747431038234,-400.0,0.00016438,2]
[361296558,1747431038243,-400.0,0.00016438,2]
[361296559,1747431038253,-713.97,0.00016438,2]
[361296560,1747431038263,-400.0,0.00016438,2]
[361296561,1747431038272,-400.0,0.00016438,2]
[361296562,1747431038281,-583.88,0.00016438,2]
[361296563,1747431038291,-400.0,0.00016438,2]
[361296564,1747431038300,-565.29,0.00016438,2]
[361296565,1747431038309,-400.0,0.00016438,2]
[361296566,1747431038319,-450.0,0.00016438,2]
[361296567,1747431038328,-1000.0,0.00016438,2]
[361296568,1747431038337,-400.0,0.00016438,2]
[361296569,1747431038347,-629.44,0.00016438,2]
[361296570,1747431038356,-400.0,0.00016438,2]
[361296571,1747431038366,-400.0,0.00016438,2]
[361296572,1747431038376,-400.0,0.00016438,2]
[361296573,1747431038385,-836.75,0.00016438,2]
[361296574,1747431038396,-400.0,0.00016438,2]
[361296575,1747431038405,-400.0,0.00016438,2]
[361296576,1747431038414,-628.05,0.00016438,2]
[361296577,1747431038423,-448.96,0.00016438,2]
[361296578,1747431038433,-400.0,0.00016438,2]
[361296579,1747431038442,-400.0,0.00016438,2]
[361296580,1747431038453,-400.0,0.00016438,2]
[361296581,1747431038464,-500.0,0.00016438,2]
[361296582,1747431038473,-500.0,0.00016438,2]
[361296583,1747431038483,-500.0,0.00016438,2]
[361296584,1747431038492,-500.0,0.00016438,2]
[361296585,1747431038500,-400.0,0.00016438,2]
[361296586,1747431038509,-246.73374926,0.00016438,2]
[361296587,1747431038519,-593.12,0.00016438,2]
[361296589,1747431038528,-408.41397944,0.00016438,2]
[361296591,1747431038537,-664.8,0.00016438,2]
[361296592,1747431038546,-400.0,0.00016438,2]
[361296593,1747431038556,-515.21,0.00016438,2]
[361296594,1747431038565,-412.98,0.00016438,2]
[361296595,1747431038574,-400.0,0.00016438,2]
[361296596,1747431038583,-714.47,0.00016438,2]
[361296597,1747431038592,-400.0,0.00016438,2]
[361296598,1747431038602,-474.75,0.00016438,2]
[361296599,1747431038611,-400.0,0.00016438,2]
[361296601,1747431038620,-400.0,0.00016438,2]
[361296602,1747431038629,-986.97,0.00016438,2]
[361296603,1747431038638,-151.0,0.00016438,2]
[361296604,1747431038647,-400.0,0.00016438,2]
[361296605,1747431038656,-400.0,0.00016438,2]
[361296606,1747431038665,-400.0,0.00016438,2]
[361296607,1747431038675,-1368.03,0.00016438,2]
[361296608,1747431038683,-637.49,0.00016438,2]
[361296609,1747431038692,-400.0,0.00016438,2]
[361296610,1747431038703,-400.0,0.00016438,2]
[361296611,1747431038715,-1323.64,0.00016438,2]
[361296612,1747431038723,-842.64,0.00016438,2]
[361296613,1747431038733,-242.480586,0.00016438,2]
[361296614,1747431038742,-588.33,0.00016438,2]
[361296615,1747431038751,-151.0,0.00016438,2]
[361296616,1747431038760,-400.0,0.00016438,2]
[361296617,1747431038770,-579.09,0.00016438,2]
[361296618,1747431038780,-540.03,0.00016438,2]
[361296619,1747431038789,-400.0,0.00016438,2]
[361296620,1747431038798,-400.0,0.00016438,2]
[361296621,1747431038808,-400.0,0.00016438,2]
[361296622,1747431038817,-1122.2,0.00016438,2]
[361296623,1747431038827,-151.0,0.00016438,2]
[361296624,1747431038836,-552.15,0.00016438,2]
[361296625,1747431038845,-400.0,0.00016438,2]
[361296626,1747431038855,-777.01,0.00016438,2]
[361296627,1747431038864,-495.99,0.00016438,2]
[361296628,1747431038874,-449.48,0.00016438,2]
[361296629,1747431038884,-400.0,0.00016438,2]
[361296630,1747431038894,-400.0,0.00016438,2]
[361296631,1747431038903,-914.24,0.00016438,2]
[361296632,1747431038913,-604.25,0.00016438,2]
[361296633,1747431038922,-260.21826878,0.00016438,2]
[361296634,1747431038932,-510.8857259,0.00016438,2]
[361296635,1747431039487,-139.1442741,0.00016438,2]
[361296636,1747431039496,-400.0,0.00016438,2]
[361296637,1747431039506,-400.0,0.00016438,2]
[361296638,1747431039515,-400.0,0.00016438,2]
[361296639,1747431039524,-400.0,0.00016438,2]
[361296640,1747431039533,-400.0,0.00016438,2]
[361296641,1747431039543,-400.0,0.00016438,2]
[361296642,1747431039552,-400.0,0.00016438,2]
[361296643,1747431039561,-400.0,0.00016438,2]
[361296644,1747431039570,-151.0,0.00016438,2]
[361296645,1747431039670,-400.0,0.00016438,2]
[361296646,1747431039679,-400.0,0.00016438,2]
[361296647,1747431039688,-323.84735834,0.00016438,2]
[361296651,1747431041163,-331.37295874,0.00016437,2]
[361296652,1747431041172,-9246.68776694,0.00016438,2]
[361296653,1747431041182,-1224.71846776,0.00016438,2]
[361296654,1747431041197,-30795.37953952,0.00016438,2]
[361296655,1747431041683,-640.08419563,0.00016438,2]
[361296656,1747431041696,-403.15754989,0.00016438,2]
[361296657,1747431041760,-190705.62124527,0.00016438,2]
[361296658,1747431042707,150.0,0.00012164,2]
[361296664,1747431043566,-172.96265609,0.00016338,2]
[361296665,1747431043576,-175.46426084,0.00016428,2]
[361296666,1747431043587,-407.98353823,0.00016438,2]
[361296667,1747431043710,-13474.97404725,0.00016438,2]
[361296668,1747431043721,-76.15264166,0.00016438,2]
[361296669,1747431043732,-1115.0,0.00016438,2]
[361296670,1747431043745,-450.0,0.00016438,2]
[361296671,1747431043758,-591.41,0.00016438,2]
[361296672,1747431043771,-400.0,0.00016438,2]
[361296674,1747431043784,-400.0,0.00016438,2]
[361296675,1747431043797,-450.0,0.00016438,2]
[361296676,1747431043811,-159.679638,0.00016438,2]
[361296677,1747431043823,-416.42600948,0.00016438,2]
[361296678,1747431043835,-784.82,0.00016438,2]
[361296679,1747431043846,-411.55034039,0.00016438,2]
[361296680,1747431043856,-169.93303285,0.00016438,2]
[361296681,1747431043869,-400.0,0.00016438,2]
[361296682,1747431043883,-400.0,0.00016438,2]
[361296683,1747431043895,-400.0,0.00016438,2]
[361296684,1747431043908,-613.33,0.00016438,2]
[361296685,1747431043921,-561.25,0.00016438,2]
[361296686,1747431043933,-1066.56,0.00016438,2]
[361296687,1747431043946,-400.0,0.00016438,2]
[361296688,1747431043958,-400.0,0.00016438,2]
[361296689,1747431043969,-400.0,0.00016438,2]
[361296690,1747431043983,-520.2,0.00016438,2]
[361296691,1747431043996,-401.01,0.00016438,2]
[361296692,1747431044008,-418.18309338,0.00016438,2]
[361296693,1747431044020,-8719.989985,0.00016438,2]
[361296694,1747431044033,-446.0,0.00016438,2]
[361296695,1747431044045,-984.01115,0.00016438,2]
[361296696,1747431044057,-400.0,0.00016438,2]
[361296697,1747431044071,-400.0,0.00016438,2]
[361296698,1747431044084,-400.0,0.00016438,2]
[361296699,1747431044096,-400.0,0.00016438,2]
[361296700,1747431044108,-439.23,0.00016438,2]
[361296701,1747431044120,-690.2,0.00016438,2]
[361296702,1747431044130,-640.9,0.00016438,2]
[361296703,1747431044139,-434.14,0.00016438,2]
[361296704,1747431044151,-400.0,0.00016438,2]
[361296705,1747431044163,-400.0,0.00016438,2]
[361296706,1747431044177,-545.81,0.00016438,2]
[361296707,1747431044190,-769.68,0.00016438,2]
[361296708,1747431044200,-151.0,0.00016438,2]
[361296709,1747431044211,-400.0,0.00016438,2]
[361296710,1747431044221,-400.0,0.00016438,2]
[361296711,1747431044232,-151.0,0.00016438,2]
[361296712,1747431044244,-612.15,0.00016438,2]
[361296713,1747431044257,-552.66,0.00016438,2]
[361296714,1747431044269,-151.0,0.00016438,2]
[361296715,1747431044280,-400.0,0.00016438,2]
[361296716,1747431044291,-400.0,0.00016438,2]
[361296717,1747431044301,-151.0,0.00016438,2]
[361296718,1747431044313,-400.0,0.00016438,2]
[361296719,1747431044324,-832.08,0.00016438,2]
[361296720,1747431044341,-400.0,0.00016438,2]
[361296721,1747431044352,-467.05,0.00016438,2]
[361296722,1747431044363,-400.0,0.00016438,2]
[361296723,1747431044374,-400.0,0.00016438,2]
[361296724,1747431044386,-1188.02,0.00016438,2]
[361296725,1747431044397,-400.0,0.00016438,2]
[361296726,1747431044408,-400.0,0.00016438,2]
[361296727,1747431044419,-158.155376,0.00016438,2]
[361296728,1747431044430,-899.95,0.00016438,2]
[361296729,1747431044441,-400.0,0.00016438,2]
[361296730,1747431044452,-261.76762488,0.00016438,2]
[361296731,1747431044463,-415.9,0.00016438,2]
[361296732,1747431044475,-400.0,0.00016438,2]
[361296733,1747431044486,-400.0,0.00016438,2]
[361296734,1747431044498,-400.0,0.00016438,2]
[361296735,1747431044509,-400.0,0.00016438,2]
[361296736,1747431044520,-400.0,0.00016438,2]
[361296737,1747431044532,-1020.81,0.00016438,2]
[361296738,1747431044543,-151.0,0.00016438,2]
[361296739,1747431044554,-400.0,0.00016438,2]
[361296740,1747431044566,-539.09,0.00016438,2]
[361296741,1747431044578,-400.0,0.00016438,2]
[361296742,1747431044588,-1172.47,0.00016438,2]
[361296743,1747431044599,-400.0,0.00016438,2]
[361296744,1747431044611,-271.80374034,0.00016438,2]
[361296745,1747431044623,-400.0,0.00016438,2]
[361296746,1747431044634,-400.0,0.00016438,2]
[361296747,1747431044645,-704.77,0.00016438,2]
[361296748,1747431044657,-400.0,0.00016438,2]
[361296749,1747431044668,-400.0,0.00016438,2]
[361296750,1747431044680,-707.43101843,0.00016438,2]
[361296752,1747431488283,450.0,0.0001,2]
[361296753,1747431528503,277.26,0.00024658,30]
[361296754,1747431957136,-406.48,0.00013699,2]
[361296755,1747431957157,-0.6444744,0.00015421,7]
[361296756,1747432046089,-149.3555256,0.00015421,7]
[361296757,1747432046110,-160.06295924,0.00015464,2]
[361296771,1747432231450,-500.0,0.00015415,2]
[361296772,1747432231460,-297.29,0.0001542,2]
[361296773,1747432231469,-204.12704076,0.00015464,2]
[361296774,1747432231478,-112.93936693,0.00015524,2]
[361296775,1747432231495,-181.98063307,0.00015524,2]
[361296776,1747432231506,-923.02952553,0.00015631,2]
[361296777,1747432231671,-76.97047447,0.00015631,2]
[361296778,1747432231682,-200.0,0.0001573,2]
[361296779,1747432231693,-2081.7,0.0001576,2]
[361296780,1747432231704,-207.4,0.00015958,2]
[361296781,1747432231713,-150.0,0.00016198,2]
[361296782,1747432231723,-150.0,0.00016198,2]
[361296784,1747432231732,-583.95710385,0.00016223,2]
[361296785,1747432231743,-150.0,0.00016248,2]
[361296786,1747432231753,-150.0,0.00016298,2]
[361296787,1747432231763,-150.0,0.00016298,2]
[361296788,1747432231772,-524.865,0.00016311,2]
[361296789,1747432231782,-378.20434168,0.00016328,2]
[361296790,1747432231798,-221.39864339,0.00016328,2]
[361296791,1747432231807,-856.58082791,0.00016334,2]
[361296808,1747432237449,-343.41917209,0.00016334,2]
[361296809,1747432237458,-162.44376786,0.00016338,2]
[361296810,1747432237468,-169.38335115,0.00016338,2]
[361296811,1747432237477,-176.34442887,0.00016338,2]
[361296812,1747432237486,-302.92690965,0.00016338,2]
[361296813,1747432237509,-7326.85259496,0.00016338,2]
[361296814,1747432237518,-2083.25394865,0.00016338,2]
[361296815,1747432237528,-150.0,0.00016348,2]
[361296816,1747432237538,-300.0,0.00016397,2]
[361296817,1747432237549,-150.0,0.00016398,2]
[361296818,1747432237560,-150.0,0.00016398,2]
[361296819,1747432237569,-132.43745639,0.00016428,2]
[361296820,1747432237580,-43.02680446,0.00016428,2]
[361296821,1747432237591,-332.08850809,0.00016429,2]
[361296822,1747432237623,-2342.58236012,0.00016429,2]
[361296823,1747432237644,-3273.14374472,0.00016429,2]
[361296851,1747432239567,-1681.96489168,0.00016429,2]
[361296852,1747432239576,-2083.25394858,0.00016429,2]
[361296853,1747432239585,-1483.659887,0.00016432,2]
[361296854,1747432239594,-10902.994307,0.00016432,2]
[361296855,1747432239603,-1000.0,0.00016437,2]
[361296856,1747432239613,-669.465,0.00016437,2]
[361296857,1747432239622,-199.83,0.00016437,2]
[361296858,1747432239631,-550.0,0.00016437,2]
[361296859,1747432239641,-165.68647937,0.00016438,2]
[361296860,1747432239650,-20292.19948637,0.00016438,2]
[361296861,1747432239661,-37098.2229118,0.00016438,2]
[361296862,1747432239683,-29297.00504719,0.00016438,2]
[361296863,1747432239780,-1776.80814349,0.00016438,2]
[361296872,1747432242600,-703.27418222,0.00016438,2]
[361296877,1747432245439,-334.3896295,0.00016438,2]
[361296878,1747432245451,-428.74501854,0.00016438,2]
[361296879,1747432245491,-518.21999999,0.00016438,2]
[361296880,1747432245504,-1006.1975998,0.00016438,2]
[361296881,1747432245595,-1749.55797988,0.00016438,2]
[361296882,1747432245608,-686.1285,0.00016438,2]
[361296883,1747432245620,-720.0,0.00016438,2]
[361296884,1747432351440,507.61,0.00013576,2]
[361296885,1747432642592,221.8,0.00024658,30]
[361296886,1747433234176,-386.15,0.00013699,2]
[361296887,1747433234202,-200.0,0.00013749,2]
[361296888,1747433234225,-200.0,0.00013799,2]
[361296889,1747433234247,-104.18384849,0.000139,2]
[361296890,1747433348202,-471.43190411,0.000139,2]
[361296891,1747433348226,-182.76709589,0.00014434,2]
[361296892,1747433358133,-17.23290411,0.00014434,2]
[361296893,1747433358154,-200.0,0.00014943,2]
[361296894,1747433358174,-200.0,0.00015068,2]
[361296895,1747433358194,-200.0,0.00015068,2]
[361296896,1747433358214,-500.0,0.00015105,2]
[361296906,1747433431704,-200.0,0.0001529,2]
[361296907,1747433431713,-150.0,0.00015376,7]
[361296908,1747433431723,-165.33,0.00015403,2]
[361296909,1747433431732,-151.0773904,0.00015441,2]
[361296910,1747433431741,-249.73,0.00015512,2]
[361296911,1747433431750,-1063.67420586,0.0001554,2]
[361296912,1747433431761,-136.32579414,0.0001554,2]
[361296913,1747433431770,-281.17077353,0.0001554,2]
[361296914,1747433431816,-18.82922647,0.0001554,2]
[361296915,1747433431826,-457.73,0.00015541,2]
[361296916,1747433431834,-804.53,0.00015541,2]
[361296917,1747433431844,-262.7271497,0.00015541,2]
[361296918,1747433431931,-195.0028503,0.00015541,2]
[361296919,1747433431941,-437.66915262,0.00015541,2]
[361296922,1747433437644,-366.86084738,0.00015541,2]
[361296923,1747433437654,-343.94,0.00015541,2]
[361296924,1747433437664,-311.3,0.00015541,2]
[361296925,1747433437673,-1000.0,0.00015571,2]
[361296926,1747433437684,-804.53,0.000156,2]
[361296927,1747433437692,-207.4,0.00015615,2]
[361296928,1747433437701,-312.86,0.00015678,2]
[361296929,1747433437711,-162.63,0.00015678,2]
[361296930,1747433437720,-804.53,0.00015753,2]
[361296931,1747433437729,-401.03,0.00015753,2]
[361296932,1747433437738,-804.53,0.00015781,2]
[361296933,1747433437747,-300.0,0.000158,5]
[361296934,1747433437756,-507.61,0.0001584,2]
[361296935,1747433437765,-157.78709261,0.000159,5]
[361296973,1747433438311,-442.21290739,0.000159,5]
[361296975,1747433438321,-1117.78422226,0.000159,2]
[361296979,1747433438352,-1067.54589515,0.000159,2]
[361296981,1747433438362,-346.94058361,0.00016137,2]
[361296983,1747433438377,-456.78941639,0.00016137,2]
[361296985,1747433438386,-457.29,0.00016137,2]
[361296987,1747433438396,-2185.3301174,0.0001621,2]
[361296990,1747433438405,-550.0,0.00016328,2]
[361296992,1747433438415,-151.0773904,0.00016328,2]
[361296993,1747433438424,-151.0,0.00016328,2]
[361296996,1747433438437,-151.0,0.00016328,2]
[361296998,1747433438446,-599.60298507,0.00016328,2]
[361297000,1747433438456,-668.65185757,0.00016328,2]
[361297002,1747433438465,-151.0,0.00016328,2]
[361297004,1747433438475,-6435.33797597,0.00016337,2]
[361297006,1747433438484,-535.572,0.00016338,2]
[361297008,1747433438493,-162.44376782,0.00016338,2]
[361297010,1747433438502,-191.65477711,0.00016338,2]
[361297012,1747433438512,-169.38335115,0.00016338,2]
[361297014,1747433438522,-178.88524919,0.00016338,2]
[361297016,1747433438531,-2047.25015433,0.00016338,2]
[361297018,1747433438540,-2804.20805854,0.00016338,2]
[361297020,1747433438551,-24210.80624146,0.00016338,2]
[361297022,1747433438561,-4005.0,0.00016373,2]
[361297024,1747433438571,-5369.76045362,0.00016373,2]
[361297025,1747433438591,-1452.23954638,0.00016373,2]
[361297026,1747433438600,-154.0,0.00016373,2]
[361297027,1747433438609,-1012.292,0.00016373,2]
[361297028,1747433438619,-175.46426085,0.00016428,2]
[361297029,1747433438628,-2670.29398971,0.00016432,2]
[361297030,1747433438640,-5948.10201499,0.00016432,2]
[361297031,1747433438649,-396.1351964,0.00016432,2]
[361297032,1747433438659,-1353.9227061,0.00016432,2]
[361297033,1747433438668,-939.4853935,0.00016432,2]
[361297034,1747433438678,-7889.9528496,0.00016432,2]
[361297035,1747433438688,-2664.0951252,0.00016432,2]
[361297036,1747433438697,-29746.94137804,0.00016432,2]
[361297037,1747433438737,-4500.019006,0.00016432,2]
[361297041,1747433439880,-5715.12740809,0.00016432,2]
[361297042,1747433440051,-1554.30898347,0.00016432,2]
[361297043,1747433440060,-1050.66198297,0.00016437,5]
[361297044,1747433440070,-191.5,0.00016437,2]
[361297045,1747433440080,-83401.33260005,0.00016438,2]
[361297046,1747433440166,-649.12347501,0.00016438,2]
[361297047,1747433440282,-1803.66357558,0.00016438,2]
[361297048,1747433440293,-1401.6,0.00016438,2]
[361297049,1747433440304,-12519.5,0.00016438,2]
[361297060,1747433443900,-253.56550005,0.00016373,2]
[361297063,1747433445738,-894.43449995,0.00016373,2]
[361297064,1747433445748,-51010.76629503,0.00016438,2]
[361297065,1747433445759,-4803.94624046,0.00016438,2]
[361297066,1747433445852,-299.4629,0.00016438,2]
[361297067,1747433445964,-12795.46002071,0.00016438,2]
[361297068,1747433446030,-5848.1442474,0.00016438,2]
[361297069,1747433446144,-340.85218645,0.00016438,2]
[361297070,1747433973341,177.44,0.00024658,30]
[361297071,1747434342122,-504.9,0.00013554,2]
[361297072,1747434342143,-334.71914139,0.00013699,2]
[361297073,1747434429125,-53.62085861,0.00013699,2]
[361297074,1747434429147,-1000.0,0.00015263,2]
[361297075,1747434429168,-150.0,0.00015387,2]
[361297076,1747434429189,-150.0,0.00015442,7]
[361297077,1747434429211,-39.80952623,0.00015504,2]
[361297078,1747434449088,-236.56047377,0.00015504,2]
[361297079,1747434449111,-207.4,0.00015691,2]
[361297080,1747434449133,-786.45391261,0.00015699,2]
[361297083,1747434547096,-1478.3594,0.00015,2]
[361297097,1747434632171,-44.69228359,0.00015,2]
[361297098,1747434632181,-200.0,0.0001535,2]
[361297099,1747434632191,-200.0,0.000157,2]
[361297100,1747434632202,-422.37,0.000157,2]
[361297101,1747434632213,-78.18370226,0.000157,2]
[361297110,1747434637972,-344.18629774,0.000157,2]
[361297111,1747434637982,-422.37,0.000157,2]
[361297112,1747434637992,-422.37,0.000157,2]
[361297113,1747434638002,-200.0,0.00015771,2]
[361297114,1747434638012,-200.0,0.000158,5]
[361297115,1747434638022,-894.0,0.00015816,2]
[361297116,1747434638032,-504.9,0.00015817,2]
[361297117,1747434638042,-250.0,0.0001584,2]
[361297118,1747434638052,-166.19,0.00015863,2]
[361297119,1747434638062,-422.37,0.000159,2]
[361297120,1747434638072,-500.0,0.000159,5]
[361297121,1747434638082,-300.0,0.00016077,2]
[361297122,1747434638092,-973.0,0.00016078,2]
[361297123,1747434638102,-864.05076374,0.00016172,2]
[361297124,1747434638111,-150.0,0.000162,2]
[361297125,1747434638121,-711.37,0.000162,2]
[361297126,1747434638130,-163.0,0.00016309,2]
[361297127,1747434638140,-150.0,0.0001632,2]
[361297128,1747434638150,-150.0,0.0001632,2]
[361297129,1747434638160,-150.0,0.0001632,2]
[361297130,1747434638170,-151.0,0.00016328,2]
[361297131,1747434638180,-599.60298507,0.00016328,2]
[361297132,1747434638190,-668.65185757,0.00016328,2]
[361297133,1747434638200,-550.0,0.00016337,2]
[361297134,1747434638210,-2614.5708,0.00016338,2]
[361297135,1747434638220,-22698.4684,0.00016338,2]
[361297136,1747434638229,-580.6957,0.00016338,2]
[361297137,1747434638239,-7009.64181934,0.00016338,2]
[361297138,1747434638248,-227.17220683,0.00016338,2]
[361297139,1747434638258,-2634.65270648,0.00016338,2]
[361297140,1747434638268,-205.62551428,0.00016338,2]
[361297141,1747434638278,-192.63580456,0.00016338,2]
[361297142,1747434638372,-164.19813803,0.00016338,2]
[361297143,1747434638382,-3935.3145,0.00016411,2]
[361297144,1747434638391,-2634.65270639,0.00016429,2]
[361297145,1747434638401,-338.0,0.00016431,2]
[361297146,1747434638410,-150.0,0.00016432,2]
[361297147,1747434638419,-150.0,0.00016432,2]
[361297148,1747434638429,-150.0,0.00016432,2]
[361297149,1747434638438,-1771.6267606,0.00016432,2]
[361297150,1747434638448,-1352.7767593,0.00016432,2]
[361297151,1747434638458,-1726.6558267,0.00016432,2]
[361297152,1747434638469,-160.58,0.00016437,2]
[361297153,1747434638479,-500.0,0.00016437,2]
[361297154,1747434638489,-193.08884416,0.00016437,2]
[361297155,1747434638498,-500.0,0.00016437,2]
[361297156,1747434638508,-500.0,0.00016437,2]
[361297157,1747434638518,-500.0,0.00016437,2]
[361297158,1747434638528,-500.0,0.00016437,2]
[361297159,1747434638537,-500.0,0.00016437,2]
[361297160,1747434638547,-500.0,0.00016437,2]
[361297161,1747434638557,-2436.5701069,0.00016437,2]
[361297162,1747434638566,-17398.49782026,0.00016437,2]
[361297163,1747434638579,-2264.64465264,0.00016437,2]
[361297164,1747434638588,-5092.271789,0.00016437,2]
[361297165,1747434638598,-47546.90851153,0.00016438,2]
[361297166,1747434638610,-61624.80675214,0.00016438,2]
[361297167,1747434638636,-1476.61709751,0.00016438,2]
[361297168,1747434638661,-59983.17557752,0.00016438,2]
[361297169,1747434638673,-1167.42114918,0.00016438,2]
[361297170,1747434638684,-3106.29139414,0.00016438,2]
[361297171,1747434638696,-297.7877088,0.00016438,2]
[361297172,1747434638707,-397.05219414,0.00016438,2]
[361297173,1747434638719,-342.49004262,0.00016438,2]
[361297175,1747434640221,-263.19639126,0.00016428,2]
[361297176,1747434640230,-113099.79377791,0.00016438,2]
[361297177,1747434640239,-248.52971906,0.00016438,2]
[361297178,1747434640248,-622.0,0.00016438,2]
[361297179,1747434640257,-151.0,0.00016438,2]
[361297180,1747434640266,-151.0,0.00016438,2]
[361297181,1747434640275,-151.272878,0.00016438,2]
[361297182,1747434640283,-151.0,0.00016438,2]
[361297183,1747434640292,-151.0,0.00016438,2]
[361297184,1747434640301,-151.0,0.00016438,2]
[361297185,1747434640310,-151.0,0.00016438,2]
[361297186,1747434640319,-151.0,0.00016438,2]
[361297187,1747434640328,-151.0,0.00016438,2]
[361297188,1747434640337,-151.0,0.00016438,2]
[361297189,1747434640346,-151.0,0.00016438,2]
[361297190,1747434640354,-151.0,0.00016438,2]
[361297191,1747434640363,-151.0,0.00016438,2]
[361297192,1747434640372,-151.0,0.00016438,2]
[361297193,1747434640381,-151.0,0.00016438,2]
[361297194,1747434640390,-151.0,0.00016438,2]
[361297195,1747434640399,-151.0,0.00016438,2]
[361297196,1747434640408,-151.0,0.00016438,2]
[361297197,1747434640417,-151.0,0.00016438,2]
[361297198,1747434640426,-151.0,0.00016438,2]
[361297199,1747434640435,-196.01241,0.00016438,2]
[361297200,1747434640444,-151.0,0.00016438,2]
[361297201,1747434640453,-151.0,0.00016438,2]
[361297202,1747434640463,-151.0,0.00016438,2]
[361297203,1747434640472,-151.0,0.00016438,2]
[361297204,1747434640481,-151.0,0.00016438,2]
[361297205,1747434640490,-217.311671,0.00016438,2]
[361297206,1747434640499,-151.0,0.00016438,2]
[361297207,1747434640508,-151.0,0.00016438,2]
[361297208,1747434640518,-151.0,0.00016438,2]
[361297209,1747434640527,-259.701475,0.00016438,2]
[361297210,1747434640537,-151.0,0.00016438,2]
[361297211,1747434640546,-151.0,0.00016438,2]
[361297212,1747434640556,-151.0,0.00016438,2]
[361297213,1747434640565,-151.0,0.00016438,2]
[361297214,1747434640574,-151.0,0.00016438,2]
[361297215,1747434640584,-151.0,0.00016438,2]
[361297216,1747434640593,-151.0,0.00016438,2]
[361297217,1747434640603,-151.0,0.00016438,2]
[361297218,1747434640612,-151.0,0.00016438,2]
[361297219,1747434640622,-151.0,0.00016438,2]
[361297220,1747434640631,-151.0,0.00016438,2]
[361297221,1747434640640,-151.0,0.00016438,2]
[361297222,1747434640650,-151.0,0.00016438,2]
[361297223,1747434640659,-151.0,0.00016438,2]
[361297224,1747434640668,-151.0,0.00016438,2]
[361297225,1747434640677,-151.0,0.00016438,2]
[361297226,1747434640687,-151.0,0.00016438,2]